[Event "58th Akiba Rubinstein GM 2022"]
[Site "Polanica-Zdroj"]
[Date "2022.08.15"]
[Round "2.1"]
[White "Plat, Vojtech"]
[Black "Tomczak, Jacek"]
[Result "1-0"]
[ECO "E36"]
[WhiteElo "2556"]
[BlackElo "2596"]
[Annotator "TA"]
[PlyCount "71"]
[EventDate "2022.08.13"]
[EventCountry "POL"]
[SourceTitle "playchess.com"]
[Source "ChessBase"]
[SourceQuality "1"]
[TimeControl "40/5400+30:1800+30"]

{[%evp 10,71,13,0,36,23,28,21,36,36,40,35,47,0,0,12,109,92,110,99,93,103,87,55,48,0,0,0,118,100,116,98,118,115,232,218,175,86,229,226,251,264,312,331,382,364,363,374,345,266,291,288,414,413,401,400,576,556,29994,29995,29996,29997,29997,29998]} 1. c4 {[%emt 0:00:04]} Nf6 {[%emt 0:00:39]} 2. d4 {[%emt 0:00:33]} e6 {[%emt 0:00:20]} 3. Nc3 {[%emt 0:00:06]} Bb4 {[%emt 0:00:07]} 4. Qc2 {[%emt 0:00:04]} d5 {[%emt 0:00:22]} 5. a3 {[%emt 0:00:05]} Bxc3+ {[%emt 0:00:13]} 6. Qxc3 {[%emt 0:00:05]} c5 {[%emt 0:00:16] E36: Nimzo-Indian: Classical: 4...d5 5 a3.} 7. dxc5 {[%emt 0:01:07]} d4 {[%emt 0:00:09]} 8. Qg3 {[%emt 0:00:07] 8.Qg3 scores better than 8.Qc2.} Nc6 {[%emt 0:00:09] The position is equal.} 9. b4 {[%emt 0:02:38]} (9. Nf3 {feels hotter.} O-O 10. Bh6 Nh5 11. Qg5) 9... O-O {[%emt 0:01:00]} 10. Bg5 {[%emt 0:05:50]} e5 {[%emt 0:08:20][%cal Be6e5,Be5e4][%mdl 32]} 11. Nf3 $40 {[%emt 0:11:26][%mdl 128] White mounts an attack.} e4 {[%emt 0:13:18]} 12. Ne5 {[%emt 0:01:28] [#]} Nh5 $146 {[%emt 0:22:34]} (12... h6 $11 {keeps the balance.} 13. Nxc6 (13. Bxh6 Nh5 $17) 13... bxc6 14. Bxh6 Ng4) ({Predecessor:} 12... Nxe5 13. Qxe5 a5 14. b5 Be6 15. Rd1 Nd7 16. Qg3 f6 17. Bh6 Qe7 18. Rxd4 Nxc5 {0-1 (45) El Gindy,E (2485)-Sax,G (2535) Cairo 1998}) 13. Bxd8 {[%emt 0:03:35] White is more active.} (13. Nxc6 {with more complications.} Nxg3 14. Bxd8 bxc6 15. hxg3 Rxd8 16. Rh4) 13... Nxg3 {[%emt 0:00:10] [#]} 14. Nxc6 {[%emt 0:03:46]} bxc6 {[%emt 0:01:18]} 15. hxg3 {[%emt 0:00:11]} Rxd8 {[%emt 0:00:04]} 16. e3 {[%emt 0:00:20]} d3 {[%emt 0:05:23]} 17. f3 {[%emt 0:00:05]} (17. Kd2 $14) 17... Be6 $11 {[%emt 0:04:39]} 18. Kd2 {[%emt 0:02:55] Threatens to win with Rh4.} a5 {[%emt 0:05:41]} (18... Bxc4 $11 {remains equal.} 19. Rh4 f5) 19. b5 $16 {[%emt 0:02:48][%cal Bb4b5,Bb5b6][%mdl 32] b6 is the strong threat.} Bxc4 {[%emt 0:00:17]} 20. b6 {[%emt 0:00:05]} f5 {[%emt 0:01:55]} 21. g4 {[%emt 0:00:08]} fxg4 {[%emt 0:22:07]} (21... Ba6 $16) 22. fxe4 $18 {[%emt 0:00:26]} Re8 {[%emt 0:00:29] [#]} 23. g3 {[%emt 0:17:49]} (23. Bxd3 $2 Rad8 24. Kc3 Bxd3 $19) (23. Rc1 $1 $18 {[%cal Rc1c4]} Rxe4 24. Rc3 (24. Bxd3 Bxd3 25. Kxd3 Rae8 $16)) 23... Re5 {[%emt 0:09:52] A mistake that costs the game.} (23... Ba6 $16) 24. Rc1 {[%emt 0:01:18]} (24. Bxd3 $2 Rd8 25. Rhd1 Bxd3 $19) 24... Rxc5 {[%emt 0:00:54]} 25. Rc3 {[%emt 0:04:00]} ({And not} 25. Bxd3 Rd8 26. Rc3 Rxd3+ 27. Rxd3 Bxd3 28. Kxd3 Rb5 $11) 25... Rd8 {[%emt 0:01:23]} 26. a4 {[%emt 0:00:28]} ({Stronger than} 26. Bxd3 {[#]} Bxd3 $1 27. Rxd3 Rxd3+ 28. Kxd3 Rb5 $11) 26... Rb8 {[%emt 0:01:03]} 27. Bxd3 {[%emt 0:00:13]} Bxd3 {[%emt 0:00:03]} 28. Rxc5 {[%emt 0:00:05]} Bxe4 {[%emt 0:00:03][%mdl 4096] Endgame KRR-KRB} 29. Rhh5 {[%emt 0:02:42] Strongly threatening Rhe5.} Rxb6 {[%emt 0:00:06]} 30. Rhe5 {[%emt 0:00:27]} ({Don't play} 30. Rxa5 Rb7 31. Ra8+ Kf7 $18) 30... Bf3 {[%emt 0:01:02]} (30... Bg6 {is a better defense.} 31. Kc3 Rb7) 31. Re7 {[%emt 0:01:05]} Rb2+ {[%emt 0:01:20]} 32. Kc3 {[%emt 0:00:11]} Rg2 {[%emt 0:00:33]} (32... Ra2 {was called for.} 33. Rxa5 h5) 33. Rg5 {[%emt 0:00:09]} Rxg3 {[%emt 0:00:07]} 34. Rgxg7+ {[%emt 0:00:06] White mates.} Kf8 {[%emt 0:00:04]} 35. Ref7+ {[%emt 0:00:05]} Ke8 {[%emt 0:00:05]} 36. Ra7 {[%emt 0:00:05] Weighted Error Value: White=0.09 (flawless) /Black=0.64} 1-0

[Event "58th Akiba Rubinstein GM 2022"]
[Site "Polanica-Zdroj"]
[Date "2022.08.15"]
[Round "2.2"]
[White "Sumets, Andrey"]
[Black "Mastrovasilis, Dimitrios"]
[Result "1/2-1/2"]
[ECO "E04"]
[WhiteElo "2547"]
[BlackElo "2597"]
[Annotator "TA"]
[PlyCount "83"]
[EventDate "2022.08.13"]
[EventCountry "POL"]
[SourceTitle "playchess.com"]
[Source "ChessBase"]
[SourceQuality "1"]
[TimeControl "40/5400+30:1800+30"]

{[%evp 11,83,13,28,-32,26,0,0,0,1,-35,-43,-45,-31,-33,-31,-35,-47,-36,-16,-22,-28,-31,25,20,21,21,21,22,22,22,35,0,32,36,32,29,32,29,37,33,22,33,29,24,46,46,32,37,37,32,45,45,45,46,65,65,99,99,116,123,123,116,194,99,360,360,296,51,52,54,54,8,10,0]} 1. d4 {[%emt 0:00:01]} d5 {[%emt 0:01:38]} 2. c4 {[%emt 0:00:04]} e6 {[%emt 0:00:29]} 3. Nf3 {[%emt 0:00:22]} Nf6 {[%emt 0:00:09]} 4. g3 {[%emt 0:00:56]} dxc4 {[%emt 0:00:16]} 5. Bg2 {[%emt 0:00:08]} a6 {[%emt 0:00:19]} 6. O-O {[%emt 0:00:09]} Nc6 {[%emt 0:00:25]} 7. Qd2 {[%emt 0:01:20] [#] E04: Open Catalan: 5 Nf3.} (7. e3 $11) 7... Bd7 $146 {[%emt 0:06:26]} (7... Rb8 $15) ({Predecessor:} 7... Rb8 8. Ne5 Nxe5 9. dxe5 Qxd2 10. Nxd2 c3 11. bxc3 Nd7 12. Nc4 b6 13. Rb1 Bb7 14. Bxb7 Rxb7 {½-½ (28) Wojtaszek,R (2691)-Donchenko,A (2648) Legnica 2021}) 8. Ne5 {[%emt 0:00:40]} Nxe5 {[%emt 0:02:04]} 9. dxe5 {[%emt 0:00:08]} Nd5 {[%emt 0:00:22]} 10. Bxd5 {[%emt 0:08:49]} exd5 {[%emt 0:00:12]} 11. Qxd5 {[%emt 0:00:04]} Be6 $1 {[%emt 0:04:42]} 12. Qf3 {[%emt 0:09:39]} ({But not} 12. Qxb7 $2 Bd5 13. Bg5 Qd7 $19) 12... Qd5 {[%emt 0:06:33]} 13. Qxd5 {[%emt 0:02:11]} Bxd5 {[%emt 0:00:09]} 14. Nc3 {[%emt 0:01:06]} Bc6 {[%emt 0:25:14]} 15. Rd1 {[%emt 0:00:07]} Rd8 {[%emt 0:02:58]} 16. Bg5 {[%emt 0:03:03][%csl Gg5][%cal Rd1d8]} Be7 {[%emt 0:00:59]} (16... Rd7 $1 $15) 17. Rxd8+ $11 {[%emt 0:00:20]} Bxd8 {[%emt 0:00:31]} 18. Bxd8 {[%emt 0:00:11]} Kxd8 {[%emt 0:00:07][%mdl 4096] Endgame KRB-KRN} 19. Rd1+ {[%emt 0:05:52]} Ke7 {[%emt 0:00:36]} 20. f4 {[%emt 0:01:01]} b5 {[%emt 0:10:56]} 21. e4 {[%emt 0:13:13][%cal Be2e4,Be4d5][%mdl 32]} b4 {[%emt 0:11:57]} 22. Nd5+ {[%emt 0:00:33]} Bxd5 {[%emt 0:00:05]} 23. exd5 $14 {[%emt 0:00:06] KR-KR} Rd8 {[%emt 0:01:47]} ({Don't play} 23... c3 24. bxc3 bxc3 25. Rc1 $16) 24. Kf2 {[%emt 0:23:43] aiming for Ke3.} c3 {[%emt 0:00:22]} 25. bxc3 {[%emt 0:00:05]} bxc3 {[%emt 0:00:05]} 26. Rd3 {[%emt 0:00:20]} c2 {[%emt 0:00:28]} 27. Rc3 $1 {[%emt 0:00:05][%csl LRc2,LRc7]} Rxd5 {[%emt 0:00:19]} 28. Rxc7+ {[%emt 0:00:05]} Ke6 {[%emt 0:00:18]} 29. Rxc2 {[%emt 0:03:34] Hoping for Rc6+.} Ra5 $1 {[%emt 0:01:23]} 30. Kg2 {[%emt 0:04:11]} Kf5 {[%emt 0:04:18]} 31. Kh3 {[%emt 0:07:15]} Ra4 {[%emt 0:10:03]} 32. Rc7 {[%emt 0:03:32]} Ke6 {[%emt 0:01:14]} 33. Rc8 {[%emt 0:05:43]} Rxa2 {[%emt 0:02:26]} 34. Rh8 $1 {[%emt 0:00:05]} h6 {[%emt 0:03:59]} 35. Rh7 $1 {[%emt 0:00:18]} g6 {[%emt 0:02:31]} 36. Rxh6 {[%emt 0:00:33] Threatens to win with Kg4.} a5 {[%emt 0:01:14] [#]} (36... Ke7 $16) 37. Kg4 $1 $18 {[%emt 0:00:27] Rh8 is the strong threat.} a4 $2 {[%emt 0:00:21][%mdl 8192] [#]} (37... Rd2 $16 {keeps fighting.}) 38. h4 $1 {[%emt 0:03:05] Strongly threatening h5.} a3 {[%emt 0:00:26]} 39. Rh8 $2 {[%emt 0:01:52]} (39. f5+ $1 $18 Kxe5 40. fxg6 fxg6 41. Rxg6) 39... Rg2 $1 $14 {[%emt 0:00:40]} 40. Ra8 {[%emt 0:00:00]} a2 {[%emt 0:00:00]} 41. Kf3 {[%emt 0:05:31]} (41. Ra5 $1 $14 {is more appropriate.}) 41... Rb2 {[%emt 0:08:53]} 42. Ke4 {Weighted Error Value: White=0.21 (precise) /Black=0.21 (precise)} 1/2-1/2

[Event "58th Akiba Rubinstein GM 2022"]
[Site "Polanica-Zdroj"]
[Date "2022.08.15"]
[Round "2.3"]
[White "Donchenko, Alexander"]
[Black "Nasuta, Grzegorz"]
[Result "1-0"]
[ECO "A11"]
[WhiteElo "2630"]
[BlackElo "2500"]
[Annotator "TA"]
[PlyCount "65"]
[EventDate "2022.08.13"]
[EventCountry "POL"]
[SourceTitle "playchess.com"]
[Source "ChessBase"]
[SourceQuality "1"]
[TimeControl "40/5400+30:1800+30"]

{[%evp 13,65,0,12,0,10,10,31,6,27,20,45,-5,10,0,72,59,60,35,69,39,28,36,67,52,59,48,58,29,53,41,25,23,91,104,100,102,97,86,98,89,91,95,122,127,129,131,133,113,109,106,584,580,536,539]} 1. c4 {[%emt 0:00:03]} c6 {[%emt 0:00:05]} 2. Nf3 {[%emt 0:00:22]} d5 {[%emt 0:00:08]} 3. g3 {[%emt 0:00:17]} Nf6 {[%emt 0:03:42]} 4. Bg2 {[%emt 0:00:19]} Bf5 {[%emt 0:02:41]} 5. O-O {[%emt 0:08:37]} e6 {[%emt 0:00:21]} 6. cxd5 {[%emt 0:07:54]} exd5 {[%emt 0:03:08]} 7. d3 {[%emt 0:02:06]} Be7 {[%emt 0:05:04]} 8. Qb3 {[%emt 0:10:19] A11: English Opening: 1...c6.} Qb6 {[%emt 0:03:56]} 9. Qc2 {[%emt 0:00:35]} O-O {[%emt 0:02:25]} 10. Nc3 {[%emt 0:01:07] White is slightly better.} h6 {[%emt 0:10:24] The main line 10...h6 scores better than 10...Na6.} 11. e4 {[%emt 0:02:42]} Bh7 {[%emt 0:00:07]} 12. Re1 $5 {[%emt 0:07:04][%mdl 4] A promising side line.} (12. Rd1 $14) 12... dxe4 {[%emt 0:16:33]} 13. dxe4 {[%emt 0:00:15] [#]} Nd5 $146 {[%emt 0:00:09] [#]} ({Predecessor:} 13... Nbd7 14. Be3 Qa6 15. Rad1 Rfe8 16. a3 Rad8 17. Nd4 Bf8 18. f3 Ne5 19. Bf2 c5 {0-1 (49) Neelotpal,D (2472)-Peralta,F (2587) Badalona 2016}) 14. Na4 $1 $16 {[%emt 0:06:49]} Qa5 {[%emt 0:03:53]} 15. a3 {[%emt 0:04:26]} Nb6 {[%emt 0:12:28]} 16. Nc3 {[%emt 0:00:41]} N8d7 {[%emt 0:00:27]} 17. Bf4 {[%emt 0:11:03]} Nd5 {[%emt 0:12:26]} 18. Nxd5 {[%emt 0:09:24]} cxd5 {[%emt 0:00:06]} 19. Qd2 {[%emt 0:00:09]} Qxd2 {[%emt 0:01:17]} 20. Nxd2 {[%emt 0:00:10]} d4 {[%emt 0:05:37]} 21. Nb3 {[%emt 0:03:36]} g5 {[%emt 0:00:37]} 22. Bd2 {[%emt 0:00:47]} Ne5 {[%emt 0:08:43]} (22... d3 $11 {keeps the balance.}) 23. Nxd4 {[%emt 0:01:21]} Nd3 {[%emt 0:00:29][%csl LRb2,LRe1][%cal Be5d3,Bd3b2,Bb2c4][%mdl 32]} 24. Re2 {[%emt 0:07:18]} Nxb2 {[%emt 0:00:15] [#]} 25. Nf5 $1 {[%emt 0:00:47]} Bxf5 {[%emt 0:00:10]} 26. exf5 {[%emt 0:00:02]} Bf6 {[%emt 0:02:37]} 27. Rc1 {[%emt 0:01:23] Prevents Nc4.} Rfd8 {[%emt 0:04:27]} 28. Bxb7 {[%emt 0:03:45]} Rab8 {[%emt 0:00:01]} 29. Rc7 {[%emt 0:01:20] White is more active.} Nc4 {[%emt 0:01:50]} 30. Bb4 $36 {[%emt 0:00:51][%mdl 2048] White is on the roll.} a5 {[%emt 0:00:50]} 31. Be7 {[%emt 0:05:17] This bishop pair is nice.} Re8 $2 {[%emt 0:00:27][%mdl 8192] [#]} (31... Rd1+ $16 32. Kg2 Bxe7 33. Rexe7 Nd6) 32. Bxf6 $1 $18 {[%emt 0:00:38] aiming for Rxe8+.} Rxe2 {[%emt 0:00:07]} 33. Rxc4 {[%emt 0:00:04] Weighted Error Value: White=0.06 (flawless) /Black=0.44} 1-0

[Event "58th Akiba Rubinstein GM 2022"]
[Site "Polanica-Zdroj"]
[Date "2022.08.15"]
[Round "2.4"]
[White "Bernadskiy, Vitaliy"]
[Black "Kempinski, Robert"]
[Result "1-0"]
[ECO "A10"]
[WhiteElo "2598"]
[BlackElo "2558"]
[Annotator "TA"]
[PlyCount "75"]
[EventDate "2022.08.13"]
[EventCountry "POL"]
[SourceTitle "playchess.com"]
[Source "ChessBase"]
[SourceQuality "1"]
[TimeControl "40/5400+30:1800+30"]

{[%evp 9,75,11,23,23,14,7,12,6,12,6,6,6,13,13,12,8,7,-22,0,-18,-12,-12,-9,-19,-4,-9,-12,-25,0,-8,10,12,32,6,9,0,0,-18,0,-9,-15,-12,0,0,69,61,151,76,148,146,249,258,1751,1737,1624,1580,1851,1835,1815,1670,1831,1810,1667,1382,29983,29984,29984,29984]} 1. c4 {[%emt 0:00:04]} b6 {[%emt 0:00:31]} 2. Nc3 {[%emt 0:02:48]} Bb7 {[%emt 0:00:50]} 3. e4 {[%emt 0:00:27]} e5 {[%emt 0:00:59]} 4. Nf3 {[%emt 0:03:11]} Nc6 {[%emt 0:00:09]} 5. g3 {[%emt 0:00:26]} Bc5 {[%emt 0:05:20]} 6. Bg2 {[%emt 0:00:07][%cal Of3e5] A10: English Opening: Unusual Replies for Black.} Nge7 {[%emt 0:01:00]} 7. O-O {[%emt 0:01:41][%cal Of3e5]} O-O {[%emt 0:00:58]} 8. d3 {[%emt 0:09:00] The position is equal.} d6 {[%emt 0:01:26]} 9. Be3 {[%emt 0:01:16]} Nd4 {[%emt 0:09:07]} 10. Bxd4 {[%emt 0:02:14]} Bxd4 {[%emt 0:00:53]} 11. Nxd4 {[%emt 0:00:39]} exd4 {[%emt 0:00:10]} 12. Ne2 {[%emt 0:00:28][%cal Bc3e2,Be2g3,Bg3f5][%mdl 32]} c5 {[%emt 0:00:35]} 13. g4 {[%emt 0:00:21]} b5 {[%emt 0:07:05]} 14. b3 {[%emt 0:02:19]} bxc4 {[%emt 0:01:30]} 15. bxc4 {[%emt 0:00:07]} Rb8 {[%emt 0:03:32] [#]} 16. Ng3 $146 {[%emt 0:01:20]} ({Predecessor:} 16. f4 Bc8 17. Ng3 Ng6 18. h3 Nh4 19. Qd2 Qe7 20. f5 Qe5 21. Nh5 f6 22. Nf4 {0-1 (44) Mikhalevski,V (2559)-Grachev,B (2670) Jerusalem 2015}) 16... Bc6 {[%emt 0:06:24]} 17. Qd2 {[%emt 0:03:52]} Bd7 {[%emt 0:20:05]} 18. h3 {[%emt 0:07:01]} Nc6 {[%emt 0:02:08]} 19. Rab1 {[%emt 0:02:10]} Qa5 {[%emt 0:06:07]} 20. Qxa5 {[%emt 0:04:45]} Nxa5 {[%emt 0:00:27]} 21. Nf5 {[%emt 0:00:03]} Ba4 {[%emt 0:00:16]} 22. Nxd6 {[%emt 0:09:31]} Bc2 {[%emt 0:01:31][%csl LRb1,LRd3]} 23. Rbc1 {[%emt 0:09:46]} (23. Rxb8 Rxb8 24. e5 Bxd3 $17) 23... Rb2 {[%emt 0:02:41]} (23... Bxd3 24. Rfd1 Rbd8 25. e5 $16) 24. Rxc2 {[%emt 0:01:09]} Rxc2 {[%emt 0:01:07]} 25. e5 $1 {[%emt 0:00:03]} Rb8 {[%emt 0:17:05] Prevents Rb1.} 26. Bd5 {[%emt 0:00:19]} Rxa2 {[%emt 0:01:45]} ({Better is} 26... Kf8 $11) 27. Nxf7 $14 {[%emt 0:02:36] White is more active.} Nb3 {[%emt 0:01:06]} (27... Kf8 $1 $14) 28. f4 {[%emt 0:06:52]} (28. Ng5+ $142 Kf8 29. f4) 28... Kf8 {[%emt 0:01:26] [#]} (28... h6 $142) 29. Ng5 $1 $16 {[%emt 0:00:39] Black must now prevent f5.} Ke7 {[%emt 0:02:33] [#]} (29... Re2 $16) 30. f5 $1 $18 {[%emt 0:00:40]} Ra1 $2 {[%emt 0:00:53]} (30... h6) 31. f6+ {[%emt 0:03:22]} gxf6 {[%emt 0:00:02]} 32. exf6+ {[%emt 0:00:03]} Kd6 {[%emt 0:00:20]} 33. Rxa1 {[%emt 0:00:37]} Nxa1 {[%emt 0:00:02]} 34. Nxh7 {[%emt 0:00:45]} Nc2 {[%emt 0:03:51]} 35. g5 {[%emt 0:00:06][%cal Bg4g5,Bg5g6,Bg6g7][%mdl 32]} (35. f7 a5 36. g5 Ne3 $11) 35... Ne3 {[%emt 0:00:18]} 36. g6 {[%emt 0:01:41] Hoping for g7.} (36. f7 a5 37. g6 Nf5 $11) 36... a5 {[%emt 0:01:19]} 37. g7 {[%emt 0:00:36]} ({Inferior is} 37. f7 Nf5 38. Be4 Nh6 $11) 37... Rb1+ {[%emt 0:02:20]} 38. Kf2 {[%emt 0:00:10] Weighted Error Value: White=0.08 (flawless) /Black=0.45} 1-0

[Event "58th Akiba Rubinstein GM 2022"]
[Site "Polanica-Zdroj"]
[Date "2022.08.15"]
[Round "2.5"]
[White "Tazbir, Marcin"]
[Black "Teclaf, Pawel"]
[Result "1/2-1/2"]
[ECO "C77"]
[WhiteElo "2511"]
[BlackElo "2550"]
[Annotator "TA"]
[PlyCount "60"]
[EventDate "2022.08.13"]
[EventCountry "POL"]
[SourceTitle "playchess.com"]
[Source "ChessBase"]
[SourceQuality "1"]
[TimeControl "40/5400+30:1800+30"]

{[%evp 13,60,-3,-10,-15,0,-14,6,0,15,12,6,0,0,0,0,-24,0,-12,0,0,0,0,0,0,0,0,0,-10,-10,-17,-10,-15,0,-25,0,0,0,0,0,0,0,0,0,0,8,8,8,3,3]} 1. e4 {[%emt 0:00:03]} e5 {[%emt 0:06:35]} 2. Nf3 {[%emt 0:00:37]} Nc6 {[%emt 0:00:04]} 3. Bb5 {[%emt 0:00:16][%cal Bf1b5,Bb5a4,Ba4b3][%mdl 32]} a6 {[%emt 0:01:32]} 4. Ba4 {[%emt 0:00:05]} Nf6 {[%emt 0:01:24]} 5. Qe2 {[%emt 0:00:15]} b5 {[%emt 0:05:00]} 6. Bb3 {[%emt 0:00:07]} Bc5 {[%emt 0:00:04]} 7. c3 {[%emt 0:03:07]} d6 {[%emt 0:01:09]} 8. h3 {[%emt 0:03:02] C77: Ruy Lopez: 3...a6 4 Ba4 Nf6, unusual lines.} O-O {[%emt 0:03:58]} 9. d3 {[%emt 0:00:26]} Be6 {[%emt 0:05:25]} 10. Bg5 {[%emt 0:14:25]} Bxb3 {[%emt 0:04:20]} 11. axb3 {[%emt 0:00:32]} Qe7 {[%emt 0:00:05]} 12. Nbd2 {[%emt 0:04:29]} h6 {[%emt 0:02:37]} 13. Bxf6 {[%emt 0:03:44]} Qxf6 {[%emt 0:00:15]} 14. Nf1 {[%emt 0:00:07]} Ne7 {[%emt 0:10:09]} 15. Ne3 {[%emt 0:01:29]} Qe6 {[%emt 0:01:18]} 16. b4 {[%emt 0:00:06] [#]} Bb6 $146 {[%emt 0:12:37]} ({Predecessor:} 16... Bxe3 17. fxe3 f5 18. O-O fxe4 19. dxe4 Qg6 20. Qd3 Qe6 21. Kh1 Kh7 {0-1 (49) Markoja,S (1939)-Flander,N (1948) Slovenia 2011}) 17. Nh4 {[%emt 0:07:16]} g6 {[%emt 0:02:09]} 18. O-O {[%emt 0:04:53]} a5 {[%emt 0:14:43]} 19. bxa5 {[%emt 0:00:56]} Bxa5 {[%emt 0:00:09]} 20. Qg4 {[%emt 0:05:38]} Qxg4 {[%emt 0:03:11]} 21. hxg4 {[%emt 0:00:29]} Bb6 {[%emt 0:00:24]} 22. Nf3 {[%emt 0:02:01]} Kg7 {[%emt 0:01:12]} 23. g3 {[%emt 0:01:42]} f5 {[%emt 0:06:59]} 24. gxf5 {[%emt 0:03:55] The position is equal.} gxf5 {[%emt 0:01:46]} 25. Nxf5+ {[%emt 0:09:21]} Nxf5 {[%emt 0:00:09]} 26. exf5 {[%emt 0:00:15]} Rxa1 {[%emt 0:01:36]} 27. Rxa1 {[%emt 0:00:45]} Rxf5 $11 {[%emt 0:00:05] KRB-KRN} 28. Kg2 {[%emt 0:00:07]} Rf8 {[%emt 0:01:23]} 29. d4 {[%emt 0:03:50]} exd4 {[%emt 0:01:22]} 30. Nxd4 {[%emt 0:00:07] [#] Black must now prevent Ne6+.} Re8 {[%emt 0:01:13] Against Ne6+. An uneventful encounter.  Weighted Error Value: White=0.05 (flawless) /Black=0.06 (flawless)} 1/2-1/2

[Event "58th Akiba Rubinstein GM 2022"]
[Site "Polanica-Zdroj"]
[Date "2022.08.16"]
[Round "3.1"]
[White "Mastrovasilis, Dimitrios"]
[Black "Donchenko, Alexander"]
[Result "1/2-1/2"]
[ECO "B90"]
[WhiteElo "2597"]
[BlackElo "2630"]
[Annotator "TA"]
[PlyCount "69"]
[EventDate "2022.08.13"]
[EventCountry "POL"]
[SourceTitle "playchess.com"]
[Source "ChessBase"]
[SourceQuality "1"]
[TimeControl "40/5400+30:1800+30"]

{[%evp 15,69,13,26,27,25,28,12,12,34,37,44,33,38,37,46,60,32,41,60,25,50,25,40,4,9,0,0,8,13,11,9,12,12,0,0,0,0,-43,37,0,33,0,26,0,30,0,10,-36,-31,-33,0,0,0,0,0,17]} 1. e4 {[%emt 0:00:22]} c5 {[%emt 0:00:07]} 2. Nf3 {[%emt 0:00:19]} d6 {[%emt 0:00:07]} 3. d4 {[%emt 0:00:19]} cxd4 {[%emt 0:00:07]} 4. Nxd4 {[%emt 0:00:09]} Nf6 {[%emt 0:00:05]} 5. Nc3 {[%emt 0:00:09]} a6 {[%emt 0:00:06]} 6. Be3 {[%emt 0:00:21]} e5 {[%emt 0:00:24]} 7. Nf3 {[%emt 0:00:16]} Be7 {[%emt 0:00:54]} 8. Bc4 {[%emt 0:00:16]} Be6 {[%emt 0:01:06]} 9. Bxe6 {[%emt 0:01:08] B90: Sicilian Najdorf: Unusual White 6th moves, 6 Be3 Ng4 and 6 Be3 e5.} fxe6 {[%emt 0:00:05]} 10. Ng5 {[%emt 0:00:26]} Qd7 {[%emt 0:01:03]} 11. Qf3 {[%emt 0:00:17] With the idea Qh3.} Nc6 {[%emt 0:00:22]} (11... d5 $5 {[%cal Rd5d4]}) 12. Qh3 {[%emt 0:14:49] Threatens to win with Na4.} Nd8 {[%emt 0:01:13]} 13. Bb6 {[%emt 0:07:37]} h6 {[%emt 0:01:12]} 14. O-O-O {[%emt 0:00:52] Bxd8 is the strong threat.} O-O {[%emt 0:01:17]} 15. Bxd8 {[%emt 0:00:15]} hxg5 {[%emt 0:00:07]} 16. Bxe7 {[%emt 0:00:10]} Qxe7 {[%emt 0:00:05] [#]} 17. Rd2 $146 {[%emt 0:06:16]} ({Predecessor:} 17. Qg3 b5 18. f3 g4 19. Rhe1 gxf3 20. Qxf3 Rac8 21. Qd3 Rfd8 22. Kb1 Rc4 23. a4 {0-1 (48) Studer,N (2573)-Keymer,V (2568) Karlsruhe 2020}) 17... b5 {[%emt 0:07:04]} 18. Qd3 {[%emt 0:07:29]} Rfd8 {[%emt 0:11:00]} 19. Rhd1 {[%emt 0:05:43]} Rac8 {[%emt 0:11:30]} 20. f3 {[%emt 0:04:35]} Rc6 {[%emt 0:02:38]} 21. Kb1 {[%emt 0:05:31]} Rdc8 {[%emt 0:02:40]} 22. a3 {[%emt 0:16:16]} Nd7 {[%emt 0:07:33]} 23. Na2 {[%emt 0:01:06][%cal Bc3a2,Ba2c1,Bc1b3][%mdl 32]} Nc5 {[%emt 0:08:10]} 24. Qe2 {[%emt 0:04:04]} Rb6 {[%emt 0:01:47]} 25. Nc1 {[%emt 0:04:00]} a5 {[%emt 0:03:46]} 26. Nb3 {[%emt 0:00:45]} Nb7 {[%emt 0:12:21]} (26... Na4 $15) 27. Qe3 {[%emt 0:04:43]} (27. Qf2 $5 {[%cal Rf2b6]} Qd8 28. Nc1 $11) 27... Rbc6 {[%emt 0:03:20]} 28. Qe2 {[%emt 0:02:06]} Rb6 {[%emt 0:05:10]} 29. Qe3 {[%emt 0:00:34]} (29. Qf2 $5 {[%cal Rf2b6]} Qd8 30. h3 $11) 29... Rbc6 {[%emt 0:00:28]} 30. Qe2 {[%emt 0:01:21]} Qc7 {[%emt 0:02:46]} 31. Qxb5 {[%emt 0:06:14]} (31. h3 $11) 31... Rxc2 $15 {[%emt 0:02:09]} 32. Ka2 {[%emt 0:04:14] [#] Black must now prevent Rxc2.} Rc4 {[%emt 0:02:11]} (32... Rc6 $5 {[%cal Rc8b8]}) 33. Nc1 {[%emt 0:01:18] The position is equal.} a4 {[%emt 0:03:00]} 34. Nd3 {[%emt 0:00:53]} Na5 {[%emt 0:08:28] Hoping for ...Nb3.} 35. Nb4 {[%emt 0:00:41] Weighted Error Value: White=0.12 (very precise) /Black=0.10 (very precise)} 1/2-1/2

[Event "58th Akiba Rubinstein GM 2022"]
[Site "Polanica-Zdroj"]
[Date "2022.08.16"]
[Round "3.2"]
[White "Teclaf, Pawel"]
[Black "Plat, Vojtech"]
[Result "1/2-1/2"]
[ECO "C58"]
[WhiteElo "2550"]
[BlackElo "2556"]
[Annotator "TA"]
[PlyCount "27"]
[EventDate "2022.08.13"]
[EventCountry "POL"]
[SourceTitle "playchess.com"]
[Source "ChessBase"]
[SourceQuality "1"]
[TimeControl "40/5400+30:1800+30"]

{[%evp 14,27,26,23,38,32,58,54,50,15,25,0,26,0,17,0]} 1. e4 {[%emt 0:00:02]} e5 {[%emt 0:00:05]} 2. Nf3 {[%emt 0:00:10]} Nc6 {[%emt 0:00:06]} 3. Bc4 {[%emt 0:00:03]} Nf6 {[%emt 0:00:11]} 4. Ng5 {[%emt 0:01:27]} d5 {[%emt 0:00:05]} 5. exd5 {[%emt 0:00:02]} Na5 {[%emt 0:00:06]} 6. Bb5+ {[%emt 0:00:03]} c6 {[%emt 0:00:06]} 7. dxc6 {[%emt 0:00:04]} bxc6 {[%emt 0:00:05]} 8. Bd3 {[%emt 0:00:03]} Nd5 {[%emt 0:00:34] C58: Two Knights: 4 Ng5 d5 5 exd5 Na5 sidelines.} 9. h4 {[%emt 0:01:21]} ({Worse is} 9. Qh5 g6 10. Nxf7 gxh5 $17) 9... h6 {[%emt 0:00:05] 9...Qc7 is setting a new trend.} 10. Qh5 {[%emt 0:00:21][%csl Gg5][%cal Rh5f7] [#]} Qf6 {[%emt 0:00:04] aiming for ...Nf4.} 11. Ne4 {[%emt 0:03:38]} (11. Nh7 $5 {[%cal Rh7f6]} Qf4 12. Nxf8 $11) 11... Qe6 {[%emt 0:00:10] [#]} 12. Ng5 $146 {[%emt 0:01:08]} ({Predecessor:} 12. Qf3 f5 13. Nbc3 Nb4 14. b3 Nxd3+ 15. Qxd3 fxe4 16. Nxe4 Be7 17. Bb2 O-O 18. O-O-O c5 19. g4 c4 20. Qc3 {1-0 (33) Nepomniachtchi,I (2773)-Sadhwani,R (2616) Chess.com INT 2022}) 12... Qf6 {[%emt 0:00:07] ...Nf4 is the strong threat.} 13. Ne4 {[%emt 0:01:47]} (13. Nh7 $5 {[%cal Rh7f6]} Qf4 14. Nxf8 $14) 13... Qe6 {[%emt 0:00:05]} 14. Ng5 {[%emt 0:00:03] Weighted Error Value: White=0.11 (very precise) /Black=0.06 (flawless)} 1/2-1/2